[Event "EYCC Open-U10 2019"]
[Site "Bratislava"]
[Date "2019.08.04"]
[Round "3.1"]
[White "Golovchenko, Bogdan"]
[Black "Materia, Marco"]
[Result "0-1"]
[ECO "D00"]
[WhiteElo "1723"]
[BlackElo "2243"]
[Annotator "NA"]
[PlyCount "84"]
[EventDate "2019.08.02"]
[EventType "swiss"]
[EventCountry "SVK"]
[SourceTitle "playchess.com"]
[Source "ChessBase"]
[SourceQuality "1"]
[TimeControl "40/5400+30:1800+30"]

1. d4 d5 2. Bf4 Nf6 3. e3 e6 4. Nf3 Bd6 5. Bg3 O-O 6. Nbd2 c5 7. c3 Qc7 8. Ne5 Nfd7 9. Nxd7 Nxd7 10. Bd3 Re8 11. Bxd6 Qxd6 12. f4 b6 13. Nf3 Nf8 14. g4 c4 15. Bc2 Bd7 16. g5 b5 17. Ne5 Reb8 18. Qh5 Be8 19. Qf3 a5 20. h4 b4 21. O-O Ra7 22. Kh1 bxc3 23. bxc3 Rb2 24. Rf2 Rb8 25. h5 a4 26. e4 Bc6 27. Nxc6 Qxc6 28. e5 g6 29. hxg6 fxg6 30. Qh3 a3 31. Qh6 Qe8 32. Qh2 Rb2 33. Bd1 Qb5 34. Rc2 Rb7 35. Kg1 Rb1 36. Rxb1 Qxb1 37. Qd2 Rb2 38. Kf2 Qxa2 39. Qc1 Qb3 40. Ke1 Rxc2 41. Bxc2 Qxc3+ 42. Ke2 a2 0-1

[Event "EYCC Open-U10 2019"]
[Site "Bratislava"]
[Date "2019.08.04"]
[Round "3.2"]
[White "Finek, Vaclav"]
[Black "Gal, Andrej"]
[Result "1-0"]
[ECO "E62"]
[WhiteElo "2043"]
[BlackElo "1705"]
[Annotator "NA"]
[PlyCount "118"]
[EventDate "2019.08.02"]
[EventType "swiss"]
[EventCountry "SVK"]
[SourceTitle "playchess.com"]
[Source "ChessBase"]
[SourceQuality "1"]
[TimeControl "40/5400+30:1800+30"]

1. d4 Nf6 2. Nf3 g6 3. c4 Bg7 4. g3 O-O 5. Bg2 d6 6. O-O Nc6 7. Nc3 e5 8. d5 Nb8 9. e4 a5 10. Qc2 Na6 11. a3 Nc5 12. b3 a4 13. b4 Nb3 14. Rb1 Nxc1 15. Rbxc1 Bd7 16. Ne1 Nh5 17. c5 f5 18. exf5 gxf5 19. Qe2 Nf6 20. Qc4 Qe7 21. Nd3 e4 22. Nf4 Bh6 23. Nce2 Kh8 24. Rfe1 Ng4 25. Qc3+ Bg7 26. Nd4 Qe5 27. Rcd1 Rae8 28. h3 Nf6 29. Qc4 Bh6 30. Nde2 b6 31. c6 Bc8 32. b5 e3 33. f3 Rg8 34. Qxa4 Bxf4 35. Qxf4 Qxf4 36. Nxf4 Rxg3 37. Rd3 e2 38. Rxe2 Rxe2 39. Nxe2 Rg8 40. Nf4 Re8 41. Kf2 Kg7 42. Ne2 Kg6 43. Rd4 Re5 44. Nf4+ Kf7 45. Bf1 Ng8 46. Ra4 Nf6 47. Ra7 Re7 48. a4 h6 49. Bc4 Nh7 50. Ra8 Re8 51. h4 Nf6 52. Ba2 Ng8 53. a5 bxa5 54. Rxa5 Kf6 55. Ra7 Re7 56. Ra8 Re8 57. Ne6 Rxe6 58. dxe6 Bxe6 59. Bxe6 Kxe6 1-0

[Event "EYCC Open-U10 2019"]
[Site "Bratislava"]
[Date "2019.08.04"]
[Round "3.3"]
[White "Navoyan, Gagik"]
[Black "Vetokhin, Savva"]
[Result "0-1"]
[ECO "B20"]
[WhiteElo "1670"]
[BlackElo "1954"]
[Annotator "NA"]
[PlyCount "74"]
[EventDate "2019.08.02"]
[EventType "swiss"]
[EventCountry "SVK"]
[SourceTitle "playchess.com"]
[Source "ChessBase"]
[SourceQuality "1"]
[TimeControl "40/5400+30:1800+30"]

1. e4 {[%emt 0:00:00]} c5 {[%emt 0:00:00]} 2. g3 {[%emt 0:00:00]} g6 {[%emt 0:00:00]} 3. Bg2 {[%emt 0:00:00]} Bg7 {[%emt 0:00:00]} 4. Ne2 {[%emt 0:00:00]} Nc6 {[%emt 0:00:11]} 5. c3 {[%emt 0:00:00]} Qb6 {[%emt 0:01:05]} 6. d3 {[%emt 0:01:16]} d6 {[%emt 0:00:12]} 7. O-O {[%emt 0:00:19]} e6 {[%emt 0:00:12]} 8. Nd2 {[%emt 0:01:00]} Nge7 {[%emt 0:03:05]} 9. Nc4 {[%emt 0:01:44]} Qc7 {[%emt 0:00:09]} 10. Ne3 {[%emt 0:02:55]} O-O {[%emt 0:00:14]} 11. f4 {[%emt 0:03:45]} b6 {[%emt 0:02:10]} 12. g4 {[%emt 0:08:21]} f5 {[%emt 0:01:18]} 13. Ng3 {[%emt 0:01:06]} Bd7 {[%emt 0:11:19]} 14. h4 {[%emt 0:05:04]} Rae8 {[%emt 0:07:27]} 15. h5 {[%emt 0:08:29]} Nd8 {[%emt 0:14:23]} 16. hxg6 {[%emt 0:11:24]} hxg6 {[%emt 0:00:08]} 17. gxf5 {[%emt 0:02:21]} exf5 {[%emt 0:00:20]} 18. exf5 {[%emt 0:03:14]} gxf5 {[%emt 0:04:15]} 19. Nh5 {[%emt 0:09:41]} Rf7 {[%emt 0:07:28]} 20. Rf3 {[%emt 0:03:20]} Bc6 {[%emt 0:07:31]} 21. Rg3 {[%emt 0:00:22]} Bxg2 {[%emt 0:00:06]} 22. Rxg2 {[%emt 0:00:08]} Kf8 {[%emt 0:01:17]} 23. Qf3 {[%emt 0:06:59]} Ne6 {[%emt 0:03:57]} 24. Bd2 {[%emt 0:02:28]} Qd7 {[%emt 0:09:26]} 25. Kh2 {[%emt 0:05:23]} Bh8 {[%emt 0:04:08]} 26. Kg1 {[%emt 0:10:12]} Rh7 {[%emt 0:04:10]} 27. Ng3 {[%emt 0:04:39]} Ng7 {[%emt 0:02:54]} 28. c4 {[%emt 0:03:14]} Kf7 {[%emt 0:00:52]} 29. Bc3 {[%emt 0:00:55]} Rh3 {[%emt 0:00:40]} 30. Nd5 {[%emt 0:02:36]} Nh5 {[%emt 0:00:43]} 31. Nxe7 {[%emt 0:02:12]} Bxc3 {[%emt 0:01:27]} 32. bxc3 {[%emt 0:01:44]} Kxe7 {[%emt 0:00:36]} 33. Re1+ {[%emt 0:00:48]} Kf8 {[%emt 0:00:08]} 34. Rxe8+ {[%emt 0:00:32]} Qxe8 {[%emt 0:00:02]} 35. Kf2 {[%emt 0:00:31]} Nf6 {[%emt 0:02:59]} 36. Rg1 {[%emt 0:00:44]} Ng4+ {[%emt 0:00:07]} 37. Kf1 {[%emt 0:00:18]} Nh2+ {[%emt 0:00:06]} 0-1

[Event "EYCC Open-U10 2019"]
[Site "Bratislava"]
[Date "2019.08.04"]
[Round "3.4"]
[White "Medhus, Vitus Bondo"]
[Black "Samunenkov, Ihor"]
[Result "0-1"]
[ECO "B36"]
[WhiteElo "1704"]
[BlackElo "1985"]
[Annotator "NA"]
[PlyCount "50"]
[EventDate "2019.08.02"]
[EventType "swiss"]
[EventCountry "SVK"]
[SourceTitle "playchess.com"]
[Source "ChessBase"]
[SourceQuality "1"]
[TimeControl "40/5400+30:1800+30"]

1. e4 {[%emt 0:00:00]} c5 {[%emt 0:00:00]} 2. Nf3 {[%emt 0:00:00]} Nc6 {[%emt 0:00:00]} 3. d4 {[%emt 0:00:05]} cxd4 {[%emt 0:00:09]} 4. Nxd4 {[%emt 0:00:26]} g6 {[%emt 0:00:21]} 5. c4 {[%emt 0:00:14]} Nf6 {[%emt 0:01:02]} 6. Nc3 {[%emt 0:00:20]} Nxd4 {[%emt 0:00:17]} 7. Qxd4 {[%emt 0:00:27]} d6 {[%emt 0:00:08]} 8. f3 {[%emt 0:00:23]} Bg7 {[%emt 0:00:21]} 9. Be3 {[%emt 0:00:29]} O-O {[%emt 0:00:49]} 10. Qd2 {[%emt 0:00:18]} Qa5 {[%emt 0:04:35]} 11. Rc1 {[%emt 0:01:01]} Be6 {[%emt 0:02:11]} 12. Be2 {[%emt 0:00:23]} Rfc8 {[%emt 0:01:35]} 13. b3 {[%emt 0:00:46]} a6 {[%emt 0:00:20]} 14. O-O {[%emt 0:00:33]} b5 {[%emt 0:05:34]} 15. cxb5 {[%emt 0:02:30]} axb5 {[%emt 0:01:40]} 16. Nxb5 {[%emt 0:03:51]} Rxc1 {[%emt 0:02:19]} 17. Qxc1 {[%emt 0:08:12]} Qxa2 {[%emt 0:03:24]} 18. Bc4 {[%emt 0:01:54]} Rc8 {[%emt 0:04:54]} 19. Na7 {[%emt 0:01:37]} Rc7 {[%emt 0:02:11]} 20. Nb5 {[%emt 0:00:35]} Bxc4 {[%emt 0:01:08]} 21. Rf2 {[%emt 0:01:39]} Bxb5 {[%emt 0:05:48]} 22. Qxc7 {[%emt 0:02:16]} Qa1+ {[%emt 0:01:39]} 23. Bc1 {[%emt 0:00:40]} Ne8 {[%emt 0:00:40]} 24. Qc8 {[%emt 0:01:11]} Bd4 {[%emt 0:00:11]} 25. b4 {[%emt 0:02:20]} Qa2 {[%emt 0:01:22]} 0-1

[Event "EYCC Open-U10 2019"]
[Site "Bratislava"]
[Date "2019.08.04"]
[Round "3.5"]
[White "Usov, Aleksandr E."]
[Black "Hvozdz, Aliaksandr"]
[Result "1-0"]
[ECO "B01"]
[WhiteElo "1809"]
[BlackElo "1699"]
[Annotator "NA"]
[PlyCount "93"]
[EventDate "2019.08.02"]
[EventType "swiss"]
[EventCountry "SVK"]
[SourceTitle "playchess.com"]
[Source "ChessBase"]
[SourceQuality "1"]
[TimeControl "40/5400+30:1800+30"]

1. e4 {[%emt 0:00:15]} d5 {[%emt 0:00:00]} 2. exd5 {[%emt 0:00:20]} Qxd5 {[%emt 0:00:00]} 3. Nc3 {[%emt 0:00:14]} Qd6 {[%emt 0:00:12]} 4. d4 {[%emt 0:00:19]} Nf6 {[%emt 0:00:08]} 5. Nf3 {[%emt 0:00:28]} c6 {[%emt 0:00:08]} 6. Bd3 {[%emt 0:00:26]} Bg4 {[%emt 0:01:42]} 7. Ne4 {[%emt 0:00:42]} Nxe4 {[%emt 0:03:57]} 8. Bxe4 {[%emt 0:00:55]} e6 {[%emt 0:02:58]} 9. O-O {[%emt 0:00:32]} Be7 {[%emt 0:01:16]} 10. c3 {[%emt 0:12:01]} Nd7 {[%emt 0:03:50]} 11. Bd3 {[%emt 0:08:45]} O-O {[%emt 0:08:28]} 12. Be2 {[%emt 0:04:42]} c5 {[%emt 0:06:07]} 13. Be3 {[%emt 0:01:12]} cxd4 {[%emt 0:06:32]} 14. Nxd4 {[%emt 0:00:29]} Bxe2 {[%emt 0:02:29]} 15. Qxe2 {[%emt 0:03:26]} Nf6 {[%emt 0:05:30]} 16. Rad1 {[%emt 0:03:35]} Nd5 {[%emt 0:04:31]} 17. c4 {[%emt 0:08:10]} Nxe3 {[%emt 0:02:43]} 18. Qxe3 {[%emt 0:06:51]} Rfd8 {[%emt 0:04:23]} 19. Qf3 {[%emt 0:00:45]} Qb6 {[%emt 0:03:10]} 20. Nb5 {[%emt 0:27:32]} Bf6 {[%emt 0:03:53]} 21. b3 {[%emt 0:01:45]} Rxd1 {[%emt 0:07:25]} 22. Rxd1 {[%emt 0:00:07]} Rd8 {[%emt 0:00:11]} 23. g3 {[%emt 0:02:47]} Rxd1+ {[%emt 0:02:12]} 24. Qxd1 {[%emt 0:00:08]} a6 {[%emt 0:03:53]} 25. Qd7 {[%emt 0:01:24]} Qd8 {[%emt 0:00:27]} 26. Qxd8+ {[%emt 0:00:52]} Bxd8 {[%emt 0:00:11]} 27. Nd6 {[%emt 0:00:07]} b6 {[%emt 0:00:07]} 28. Ne4 {[%emt 0:03:39]} Kf8 {[%emt 0:01:59]} 29. f4 {[%emt 0:00:12]} Ke7 {[%emt 0:00:45]} 30. Kf2 {[%emt 0:00:10]} Kd7 {[%emt 0:01:52]} 31. Ke3 {[%emt 0:00:27]} f5 {[%emt 0:01:37]} 32. Nd2 {[%emt 0:01:07]} e5 {[%emt 0:02:47]} 33. fxe5 {[%emt 0:01:03]} Bg5+ {[%emt 0:00:06]} 34. Kd3 {[%emt 0:00:11]} Bxd2 {[%emt 0:00:24]} 35. Kxd2 {[%emt 0:00:07]} Ke6 {[%emt 0:00:07]} 36. Ke3 {[%emt 0:01:20]} Kxe5 {[%emt 0:00:09]} 37. h4 {[%emt 0:04:37]} g6 {[%emt 0:02:04]} 38. b4 {[%emt 0:02:10]} h6 {[%emt 0:04:03]} 39. a3 {[%emt 0:03:20]} g5 {[%emt 0:02:22]} 40. h5 {[%emt 0:00:00]} a5 {[%emt 0:00:00]} 41. bxa5 {[%emt 0:01:45]} bxa5 {[%emt 0:01:57]} 42. a4 {[%emt 0:00:06]} g4 {[%emt 0:01:49]} 43. c5 {[%emt 0:00:17]} Kd5 {[%emt 0:00:12]} 44. Kf4 {[%emt 0:00:30]} Kxc5 {[%emt 0:00:10]} 45. Kxf5 {[%emt 0:00:05]} Kb4 {[%emt 0:00:16]} 46. Kg6 {[%emt 0:00:07]} Kxa4 {[%emt 0:00:20]} 47. Kxh6 {[%emt 0:00:07]} 1-0

[Event "EYCC Open-U10 2019"]
[Site "Bratislava"]
[Date "2019.08.04"]
[Round "3.6"]
[White "Agasarov, Benik"]
[Black "Giang, Tran Nam"]
[Result "0-1"]
[ECO "A06"]
[WhiteElo "1697"]
[BlackElo "1931"]
[Annotator "NA"]
[PlyCount "54"]
[EventDate "2019.08.02"]
[EventType "swiss"]
[EventCountry "SVK"]
[SourceTitle "playchess.com"]
[Source "ChessBase"]
[SourceQuality "1"]
[TimeControl "40/5400+30:1800+30"]

1. Nf3 {[%emt 0:00:00]} d5 {[%emt 0:00:00]} 2. g3 {[%emt 0:00:00]} Nf6 {[%emt 0:00:00]} 3. Bg2 {[%emt 0:00:00]} c6 {[%emt 0:00:15]} 4. O-O {[%emt 0:00:06]} Bf5 {[%emt 0:00:17]} 5. d3 {[%emt 0:00:06]} e6 {[%emt 0:00:26]} 6. b3 {[%emt 0:00:09]} Be7 {[%emt 0:00:24]} 7. Bb2 {[%emt 0:00:09]} O-O {[%emt 0:00:16]} 8. Nbd2 {[%emt 0:00:06]} h6 {[%emt 0:00:46]} 9. c4 {[%emt 0:00:22]} a5 {[%emt 0:00:22]} 10. a3 {[%emt 0:00:07]} Nbd7 {[%emt 0:00:46]} 11. Rc1 {[%emt 0:03:43]} Bh7 {[%emt 0:04:21]} 12. Re1 {[%emt 0:05:36]} Qb6 {[%emt 0:06:55]} 13. Rc2 {[%emt 0:05:14]} Bc5 {[%emt 0:10:44]} 14. Rf1 {[%emt 0:02:20]} Rfe8 {[%emt 0:08:24]} 15. Qa1 {[%emt 0:06:29]} e5 {[%emt 0:06:14]} 16. cxd5 {[%emt 0:02:18]} cxd5 {[%emt 0:01:06]} 17. Rcc1 {[%emt 0:11:34]} Qd6 {[%emt 0:14:54]} 18. Rfe1 {[%emt 0:07:40]} Ba7 {[%emt 0:09:04]} 19. e4 Ng4 {[%emt 0:02:23]} 20. Re2 {[%emt 0:21:15]} Nc5 {[%emt 0:02:57]} 21. h3 {[%emt 0:08:54]} Nxf2 {[%emt 0:02:28]} 22. Kh2 {[%emt 0:10:42]} Nfxd3 {[%emt 0:01:59]} 23. Rxc5 {[%emt 0:00:26]} Bxc5 {[%emt 0:00:46]} 24. exd5 {[%emt 0:00:09]} Nxb2 {[%emt 0:00:57]} 25. Qxb2 {[%emt 0:00:08]} e4 {[%emt 0:00:54]} 26. Nc4 {[%emt 0:00:25]} Qxd5 {[%emt 0:01:55]} 27. Nfd2 {[%emt 0:00:08]} Qd3 {[%emt 0:00:59]} 0-1

[Event "EYCC Open-U10 2019"]
[Site "Bratislava"]
[Date "2019.08.04"]
[Round "3.7"]
[White "Deladerriere, Apollo"]
[Black "Povshednyi, Ivan"]
[Result "1-0"]
[ECO "B23"]
[WhiteElo "1696"]
[BlackElo "1872"]
[Annotator "NA"]
[PlyCount "93"]
[EventDate "2019.08.02"]
[EventType "swiss"]
[EventCountry "SVK"]
[SourceTitle "playchess.com"]
[Source "ChessBase"]
[SourceQuality "1"]
[TimeControl "40/5400+30:1800+30"]

1. e4 {[%emt 0:01:02]} c5 {[%emt 0:00:47]} 2. Nc3 {[%emt 0:00:47]} e6 {[%emt 0:00:17]} 3. f4 {[%emt 0:01:37]} d5 {[%emt 0:00:37]} 4. Nf3 {[%emt 0:01:56]} a6 {[%emt 0:02:55]} 5. d3 {[%emt 0:01:30]} Nc6 {[%emt 0:00:21]} 6. g3 {[%emt 0:03:38]} g6 {[%emt 0:04:20]} 7. Bg2 {[%emt 0:04:16]} Bg7 {[%emt 0:00:38]} 8. O-O {[%emt 0:01:08]} Nge7 {[%emt 0:00:23]} 9. g4 {[%emt 0:17:36]} O-O {[%emt 0:02:14]} 10. Nh4 {[%emt 0:02:09]} f5 {[%emt 0:11:57]} 11. gxf5 {[%emt 0:04:29]} gxf5 {[%emt 0:01:25]} 12. e5 {[%emt 0:00:51]} b5 {[%emt 0:05:34]} 13. Nf3 {[%emt 0:11:42]} d4 {[%emt 0:05:13]} 14. Ne2 {[%emt 0:01:52]} Qb6 {[%emt 0:05:47]} 15. Kh1 {[%emt 0:01:05]} Kh8 {[%emt 0:03:23]} 16. Qe1 {[%emt 0:01:33]} Bd7 {[%emt 0:08:07]} 17. Qh4 {[%emt 0:00:54]} Ng6 {[%emt 0:00:29]} 18. Qh5 {[%emt 0:03:11]} Be8 {[%emt 0:06:58]} 19. Qh3 {[%emt 0:02:15]} h6 {[%emt 0:11:38]} 20. Bd2 {[%emt 0:04:51]} Rc8 {[%emt 0:02:56]} 21. Ng3 {[%emt 0:01:39]} Nce7 {[%emt 0:04:02]} 22. Nh5 {[%emt 0:00:45]} c4 {[%emt 0:00:37]} 23. Bb4 {[%emt 0:04:10]} a5 {[%emt 0:08:03]} 24. Bd6 {[%emt 0:01:10]} Nd5 {[%emt 0:01:52]} 25. Nxg7 {[%emt 0:04:35]} Kxg7 {[%emt 0:00:18]} 26. Bxf8+ {[%emt 0:00:25]} Nxf8 {[%emt 0:00:38]} 27. Ne1 {[%emt 0:02:34]} Bc6 {[%emt 0:01:12]} 28. Rf3 {[%emt 0:01:42]} Kh7 {[%emt 0:00:30]} 29. Qh5 {[%emt 0:01:30]} Be8 {[%emt 0:00:21]} 30. Qh3 {[%emt 0:01:28]} Ng6 {[%emt 0:00:19]} 31. Qg3 {[%emt 0:00:15]} Bf7 {[%emt 0:01:01]} 32. Rf2 {[%emt 0:00:36]} Ne3 {[%emt 0:01:20]} 33. Bf3 {[%emt 0:01:10]} Rg8 {[%emt 0:00:09]} 34. Ng2 {[%emt 0:04:33]} Nxe5 {[%emt 0:03:48]} 35. Qh3 {[%emt 0:01:05]} cxd3 {[%emt 0:00:50]} 36. fxe5 {[%emt 0:00:55]} Rc8 {[%emt 0:02:01]} 37. cxd3 {[%emt 0:00:33]} Qc5 {[%emt 0:00:35]} 38. Nxe3 {[%emt 0:01:27]} dxe3 {[%emt 0:00:07]} 39. Re2 {[%emt 0:01:39]} Qxe5 {[%emt 0:00:28]} 40. Rg1 {[%emt 0:00:00]} Rd8 {[%emt 0:00:00]} 41. Bh5 {[%emt 0:08:08]} Qd5+ {[%emt 0:15:42]} 42. Reg2 {[%emt 0:04:49]} Rf8 {[%emt 0:12:49]} 43. Bxf7 {[%emt 0:01:42]} Rxf7 {[%emt 0:00:09]} 44. Qg3 {[%emt 0:00:14]} Qd8 {[%emt 0:02:53]} 45. Qg6+ {[%emt 0:00:59]} Kh8 {[%emt 0:00:09]} 46. Qxh6+ {[%emt 0:00:19]} Rh7 {[%emt 0:00:14]} 47. Qf6+ {[%emt 0:00:10]} 1-0

[Event "EYCC Open-U10 2019"]
[Site "Bratislava"]
[Date "2019.08.04"]
[Round "3.8"]
[White "Zverev, Lev"]
[Black "Bazilius, Augustinas"]
[Result "1-0"]
[ECO "C12"]
[WhiteElo "1849"]
[BlackElo "1666"]
[Annotator "NA"]
[PlyCount "63"]
[EventDate "2019.08.02"]
[EventType "swiss"]
[EventCountry "SVK"]
[SourceTitle "playchess.com"]
[Source "ChessBase"]
[SourceQuality "1"]
[TimeControl "40/5400+30:1800+30"]

1. e4 {[%emt 0:00:00]} e6 {[%emt 0:00:00]} 2. d4 {[%emt 0:00:00]} d5 {[%emt 0:00:00]} 3. Nc3 {[%emt 0:00:00]} Nf6 {[%emt 0:00:00]} 4. Bg5 {[%emt 0:00:00]} Bb4 {[%emt 0:00:27]} 5. e5 {[%emt 0:00:02]} h6 {[%emt 0:00:11]} 6. Bc1 {[%emt 0:00:26]} Ne4 {[%emt 0:02:07]} 7. Qg4 {[%emt 0:00:17]} Kf8 {[%emt 0:17:03]} 8. a3 {[%emt 0:00:28]} Bxc3+ {[%emt 0:00:48]} 9. bxc3 {[%emt 0:00:07]} c5 {[%emt 0:00:54]} 10. Bd3 {[%emt 0:00:39]} cxd4 {[%emt 0:09:16]} 11. Ne2 {[%emt 0:03:46]} Nxc3 {[%emt 0:07:23]} 12. Nxd4 {[%emt 0:00:22]} Nc6 {[%emt 0:02:54]} 13. Nxc6 {[%emt 0:00:11]} bxc6 {[%emt 0:00:36]} 14. Qb4+ {[%emt 0:00:06]} Qe7 {[%emt 0:00:47]} 15. Qxc3 {[%emt 0:00:06]} c5 {[%emt 0:00:13]} 16. a4 {[%emt 0:00:13]} Bd7 {[%emt 0:00:54]} 17. Ba3 {[%emt 0:00:33]} Rc8 {[%emt 0:00:07]} 18. Ba6 {[%emt 0:00:33]} Rc7 {[%emt 0:00:45]} 19. O-O {[%emt 0:00:47]} Bxa4 {[%emt 0:00:45]} 20. Qa5 {[%emt 0:02:04]} Be8 {[%emt 0:00:54]} 21. Bb5 {[%emt 0:00:13]} Bxb5 {[%emt 0:00:30]} 22. Qxb5 {[%emt 0:00:07]} g6 {[%emt 0:00:05]} 23. c4 {[%emt 0:03:31]} dxc4 {[%emt 0:01:06]} 24. Rac1 {[%emt 0:00:41]} Kg7 {[%emt 0:01:23]} 25. Rxc4 {[%emt 0:00:09]} Rhc8 {[%emt 0:01:36]} 26. Qb3 {[%emt 0:11:20]} h5 {[%emt 0:05:54]} 27. Bc1 {[%emt 0:00:41]} Rd8 {[%emt 0:03:22]} 28. h4 {[%emt 0:01:04]} Rd4 {[%emt 0:01:25]} 29. Bg5 {[%emt 0:00:10]} Qd7 {[%emt 0:01:16]} 30. Qf3 {[%emt 0:00:28]} Rxc4 {[%emt 0:00:25]} 31. Qf6+ {[%emt 0:00:07]} Kh7 {[%emt 0:00:03]} 32. Bh6 {[%emt 0:00:05]} 1-0

[Event "EYCC Open-U10 2019"]
[Site "Bratislava"]
[Date "2019.08.04"]
[Round "3.9"]
[White "Jaakkola, Niklas"]
[Black "Kononenko, Vladimir"]
[Result "1/2-1/2"]
[ECO "C11"]
[WhiteElo "1587"]
[BlackElo "1667"]
[Annotator "NA"]
[PlyCount "113"]
[EventDate "2019.08.02"]
[EventType "swiss"]
[EventCountry "SVK"]
[SourceTitle "playchess.com"]
[Source "ChessBase"]
[SourceQuality "1"]
[TimeControl "40/5400+30:1800+30"]

1. e4 e6 2. d4 d5 3. Nc3 Nf6 4. Bg5 dxe4 5. Nxe4 Be7 6. Bxf6 gxf6 7. Nf3 b6 8. Bd3 Bb7 9. c3 Nc6 10. Qe2 Qd7 11. O-O-O O-O-O 12. Rhe1 Rdg8 13. g3 f5 14. Ned2 Bf6 15. Nc4 Rd8 16. Kb1 Rhe8 17. Nce5 Bxe5 18. Nxe5 Nxe5 19. Qxe5 Rg8 20. f4 h5 21. Rg1 Rg6 22. h4 Bf3 23. Rdf1 Bb7 24. Qe3 c5 25. Be2 cxd4 26. cxd4 Be4+ 27. Ka1 Qxd4 28. Qxd4 Rxd4 29. Bxh5 Rg7 30. Rd1 Rxd1+ 31. Bxd1 f6 32. h5 e5 33. fxe5 fxe5 34. g4 fxg4 35. Bxg4+ Kb8 36. a3 Bd3 37. h6 Rg5 38. Rd1 Bg6 39. Rd8+ Kc7 40. Rd7+ Kc6 41. h7 Bxh7 42. Rxh7 Rxg4 43. Rxa7 Rc4 44. b3 Rc5 45. Rh7 Kd5 46. b4 Rc6 47. Rd7+ Ke4 48. Kb2 Ke3 49. Kb3 e4 50. Ka4 Kf2 51. Rf7+ Ke1 52. Re7 Rc4 53. Kb5 Rd4 54. Kxb6 Kd2 55. b5 e3 56. Kb7 Ra4 57. b6 1/2-1/2

[Event "EYCC Open-U10 2019"]
[Site "Bratislava"]
[Date "2019.08.04"]
[Round "3.10"]
[White "Sapocinic, Semion"]
[Black "Simbelov, Roman T."]
[Result "0-1"]
[ECO "C77"]
[WhiteElo "1781"]
[BlackElo "1560"]
[Annotator "NA"]
[PlyCount "118"]
[EventDate "2019.08.02"]
[EventType "swiss"]
[EventCountry "SVK"]
[SourceTitle "playchess.com"]
[Source "ChessBase"]
[SourceQuality "1"]
[TimeControl "40/5400+30:1800+30"]

1. e4 {[%emt 0:00:00]} e5 {[%emt 0:00:00]} 2. Nf3 {[%emt 0:00:00]} Nc6 {[%emt 0:00:00]} 3. Bb5 {[%emt 0:00:00]} a6 {[%emt 0:00:04]} 4. Ba4 {[%emt 0:00:00]} Nf6 {[%emt 0:00:07]} 5. d3 {[%emt 0:00:03]} b5 {[%emt 0:00:26]} 6. Bb3 {[%emt 0:00:14]} Be7 {[%emt 0:00:10]} 7. O-O {[%emt 0:00:24]} d6 {[%emt 0:01:00]} 8. c3 {[%emt 0:01:05]} O-O {[%emt 0:01:42]} 9. Nbd2 {[%emt 0:00:42]} Na5 {[%emt 0:00:23]} 10. Bc2 {[%emt 0:00:33]} c5 {[%emt 0:02:19]} 11. Re1 {[%emt 0:00:45]} Nc6 {[%emt 0:02:02]} 12. Nf1 {[%emt 0:00:36]} Re8 {[%emt 0:00:30]} 13. h3 {[%emt 0:02:06]} d5 {[%emt 0:03:17]} 14. exd5 {[%emt 0:01:23]} Qxd5 {[%emt 0:00:36]} 15. Bb3 {[%emt 0:00:48]} Qd6 {[%emt 0:01:30]} 16. Qe2 {[%emt 0:02:52]} Bf5 {[%emt 0:03:15]} 17. Bc2 {[%emt 0:05:45]} Bf8 {[%emt 0:01:09]} 18. Ng3 {[%emt 0:01:02]} Bg6 {[%emt 0:03:33]} 19. Nh4 {[%emt 0:02:25]} Rad8 {[%emt 0:02:13]} 20. Nxg6 {[%emt 0:00:27]} hxg6 {[%emt 0:00:12]} 21. Ne4 {[%emt 0:00:40]} Nxe4 {[%emt 0:04:25]} 22. dxe4 {[%emt 0:00:36]} Qe6 {[%emt 0:05:45]} 23. Be3 {[%emt 0:02:48]} Na5 {[%emt 0:03:38]} 24. b3 {[%emt 0:06:44]} Nc6 {[%emt 0:00:43]} 25. Bd3 {[%emt 0:01:54]} Na5 {[%emt 0:03:11]} 26. Bc2 {[%emt 0:01:23]} Nc6 {[%emt 0:03:24]} 27. a4 {[%emt 0:02:57]} b4 {[%emt 0:00:39]} 28. Bd3 {[%emt 0:04:56]} bxc3 {[%emt 0:02:27]} 29. Bc4 {[%emt 0:00:17]} Qd6 {[%emt 0:02:57]} 30. Qc2 {[%emt 0:02:33]} Nd4 {[%emt 0:02:02]} 31. Qxc3 {[%emt 0:02:04]} Qc6 {[%emt 0:01:22]} 32. Bd5 {[%emt 0:01:42]} Qb6 {[%emt 0:02:02]} 33. Qc4 {[%emt 0:01:49]} Rd7 {[%emt 0:01:13]} 34. Bxd4 {[%emt 0:05:28]} exd4 {[%emt 0:01:23]} 35. Rad1 {[%emt 0:02:28]} g5 {[%emt 0:05:07]} 36. Rd3 {[%emt 0:05:51]} Re5 {[%emt 0:02:14]} 37. Rf1 {[%emt 0:01:57]} Qf6 {[%emt 0:04:20]} 38. g3 {[%emt 0:03:09]} Qg6 {[%emt 0:15:15]} 39. f4 {[%emt 0:03:22]} gxf4 {[%emt 0:00:09]} 40. Rxf4 {[%emt 0:00:00]} Bd6 {[%emt 0:00:00]} 41. Rg4 {[%emt 0:06:17]} Rg5 {[%emt 0:10:45]} 42. Rxg5 {[%emt 0:02:20]} Qxg5 {[%emt 0:00:17]} 43. Kg2 {[%emt 0:00:54]} a5 {[%emt 0:10:33]} 44. Rf3 {[%emt 0:03:32]} Kf8 45. Bxf7 {[%emt 0:02:43]} Bxg3 {[%emt 0:07:52]} 46. Rf5 {[%emt 0:01:18]} Qd2+ {[%emt 0:01:21]} 47. Kxg3 {[%emt 0:00:35]} Qe3+ {[%emt 0:00:34]} 48. Kg4 {[%emt 0:06:28]} Qxe4+ {[%emt 0:00:35]} 49. Rf4 {[%emt 0:00:28]} Qg2+ {[%emt 0:00:08]} 50. Kh5 {[%emt 0:03:34]} Qxh3+ {[%emt 0:00:37]} 51. Kg5 {[%emt 0:00:52]} Qg3+ {[%emt 0:01:42]} 52. Rg4 {[%emt 0:00:25]} Qe5+ {[%emt 0:01:17]} 53. Kh4 {[%emt 0:00:29]} Qh2+ {[%emt 0:01:15]} 54. Kg5 {[%emt 0:00:32]} Qe5+ {[%emt 0:01:08]} 55. Kh4 {[%emt 0:00:12]} Qh2+ {[%emt 0:00:10]} 56. Kg5 {[%emt 0:00:08]} Qh6+ {[%emt 0:00:28]} 57. Kf5 {[%emt 0:00:20]} Rxf7+ {[%emt 0:00:26]} 58. Ke4 {[%emt 0:00:25]} Qe3+ {[%emt 0:00:18]} 59. Kd5 {[%emt 0:00:36]} Qf3+ {[%emt 0:00:37]} 0-1